[Event "Early-Titled-Tuesday-Blitz-October-24-2023"]
[Site "Chess.com"]
[Date "2023.10.24"]
[Round "9"]
[White "ImBushchess"]
[Black "ChessBliss09"]
[Result "1-0"]
[WhiteElo "2257"]
[BlackElo "2034"]
[TimeControl "180+1"]
[EndTime "9:42:29 PDT"]
[Termination "ImBushchess won by checkmate"]

1. Nf3 {[%clk 0:03:00.9]} 1... d5 {[%clk 0:02:58.2]} 2. g3 {[%clk 0:03:01.8]}
2... c5 {[%clk 0:02:57.1]} 3. Bg2 {[%clk 0:03:02.7]} 3... Nc6 {[%clk 0:02:58]}
4. O-O {[%clk 0:03:00.7]} 4... e5 {[%clk 0:02:56.8]} 5. d3 {[%clk 0:03:00.3]}
5... Nf6 {[%clk 0:02:55.2]} 6. Nbd2 {[%clk 0:02:53.1]} 6... a5 {[%clk
0:02:55.3]} 7. e4 {[%clk 0:02:53]} 7... d4 {[%clk 0:02:55.2]} 8. a4 {[%clk
0:02:50.1]} 8... h6 {[%clk 0:02:54.3]} 9. Nc4 {[%clk 0:02:46.6]} 9... Bd6 {[%clk
0:02:53.7]} 10. Nfd2 {[%clk 0:02:41.7]} 10... O-O {[%clk 0:02:52.7]} 11. Nxd6
{[%clk 0:02:39.6]} 11... Qxd6 {[%clk 0:02:53.3]} 12. Nc4 {[%clk 0:02:37]} 12...
Qc7 {[%clk 0:02:53.4]} 13. f4 {[%clk 0:02:25.4]} 13... Be6 {[%clk 0:02:54.3]}
14. Nxe5 {[%clk 0:02:15.2]} 14... Nxe5 {[%clk 0:02:55.2]} 15. fxe5 {[%clk
0:02:14.9]} 15... Nd7 {[%clk 0:02:52.1]} 16. Bf4 {[%clk 0:02:15.8]} 16... Rab8
{[%clk 0:02:42.9]} 17. Qh5 {[%clk 0:02:04.8]} 17... b5 {[%clk 0:02:24.8]} 18.
axb5 {[%clk 0:02:02]} 18... Rxb5 {[%clk 0:02:24.6]} 19. b3 {[%clk 0:02:02.6]}
19... Rc8 {[%clk 0:02:15.9]} 20. g4 {[%clk 0:01:58.8]} 20... f6 {[%clk
0:02:03.2]} 21. exf6 {[%clk 0:01:52.4]} 21... Nxf6 {[%clk 0:02:04.1]} 22. Qh4
{[%clk 0:01:39.5]} 22... Qe7 {[%clk 0:01:41]} 23. Bxh6 {[%clk 0:01:34.3]} 23...
Bxg4 {[%clk 0:01:24.5]} 24. Bg5 {[%clk 0:01:22.4]} 24... Be6 {[%clk 0:01:12.4]}
25. e5 {[%clk 0:01:19.4]} 25... c4 {[%clk 0:01:00.1]} 26. exf6 {[%clk 0:01:14]}
26... gxf6 {[%clk 0:01:01]} 27. Bxf6 {[%clk 0:01:11.5]} 27... Qh7 {[%clk
0:01:01.4]} 28. Qxh7+ {[%clk 0:01:09.6]} 28... Kxh7 {[%clk 0:01:02.3]} 29. dxc4
{[%clk 0:01:04.3]} 29... Rf5 {[%clk 0:01:00.3]} 30. Be4 {[%clk 0:00:57.4]} 30...
Rg8+ {[%clk 0:00:55.3]} 31. Kh1 {[%clk 0:00:55.5]} 31... Kg6 {[%clk 0:00:56.2]}
32. Bxf5+ {[%clk 0:00:50.8]} 32... Kxf6 {[%clk 0:00:56.1]} 33. Bxe6+ {[%clk
0:00:47.8]} 33... Kxe6 {[%clk 0:00:57]} 34. Rxa5 {[%clk 0:00:46.3]} 34... d3
{[%clk 0:00:53.2]} 35. cxd3 {[%clk 0:00:44.5]} 35... Rd8 {[%clk 0:00:54.1]} 36.
Rd5 {[%clk 0:00:42.4]} 36... Rb8 {[%clk 0:00:55]} 37. Ra1 {[%clk 0:00:41.5]}
37... Rxb3 {[%clk 0:00:50.9]} 38. Ra6+ {[%clk 0:00:40.1]} 38... Ke7 {[%clk
0:00:50.7]} 39. Rh5 {[%clk 0:00:39.1]} 39... Kf8 {[%clk 0:00:48.6]} 40. Rh7
{[%clk 0:00:36.9]} 40... Kg8 {[%clk 0:00:48.4]} 41. Rd7 {[%clk 0:00:35.4]} 41...
Rb8 {[%clk 0:00:49.3]} 42. Kg2 {[%clk 0:00:33.3]} 42... Rb2+ {[%clk 0:00:49]}
43. Kf3 {[%clk 0:00:32.4]} 43... Rb8 {[%clk 0:00:49.9]} 44. Kg4 {[%clk
0:00:31.4]} 44... Rf8 {[%clk 0:00:50.8]} 45. Kg5 {[%clk 0:00:30.2]} 45... Rf2
{[%clk 0:00:49.2]} 46. Ra8+ {[%clk 0:00:28.2]} 46... Rf8 {[%clk 0:00:50.1]} 47.
Rxf8+ {[%clk 0:00:28.1]} 47... Kxf8 {[%clk 0:00:51]} 48. h4 {[%clk 0:00:26.1]}
48... Ke8 {[%clk 0:00:51.4]} 49. Ra7 {[%clk 0:00:24]} 49... Kf8 {[%clk
0:00:52.3]} 50. h5 {[%clk 0:00:23.1]} 50... Ke8 {[%clk 0:00:53.2]} 51. h6 {[%clk
0:00:22.3]} 51... Kf8 {[%clk 0:00:53.6]} 52. h7 {[%clk 0:00:22.1]} 52... Ke8
{[%clk 0:00:54.2]} 53. h8=Q# {[%clk 0:00:22.3]} 1-0

[Event "Early-Titled-Tuesday-Blitz-October-24-2023"]
[Site "Chess.com"]
[Date "2023.10.24"]
[Round "9"]
[White "dianamirza"]
[Black "OLDTERMINATOR"]
[Result "1-0"]
[WhiteElo "2016"]
[BlackElo "1700"]
[TimeControl "180+1"]
[EndTime "9:42:31 PDT"]
[Termination "dianamirza won on time"]

1. e4 {[%clk 0:02:54.3]} 1... e6 {[%clk 0:02:57.8]} 2. d3 {[%clk 0:02:51.6]}
2... d5 {[%clk 0:02:57.2]} 3. Nd2 {[%clk 0:02:52.4]} 3... dxe4 {[%clk
0:02:55.9]} 4. dxe4 {[%clk 0:02:51.8]} 4... e5 {[%clk 0:02:55.5]} 5. Ngf3 {[%clk
0:02:51.5]} 5... Nc6 {[%clk 0:02:55.2]} 6. Bc4 {[%clk 0:02:52.2]} 6... Bc5
{[%clk 0:02:45.8]} 7. O-O {[%clk 0:02:43.8]} 7... Nf6 {[%clk 0:02:34.8]} 8. c3
{[%clk 0:02:34.7]} 8... a5 {[%clk 0:02:32.9]} 9. Qc2 {[%clk 0:02:15.9]} 9... O-O
{[%clk 0:02:27.3]} 10. Nb3 {[%clk 0:02:14.1]} 10... Bb6 {[%clk 0:02:21.8]} 11.
Bg5 {[%clk 0:02:10.1]} 11... Qe7 {[%clk 0:02:17.8]} 12. a4 {[%clk 0:02:01]}
12... Be6 {[%clk 0:02:16.4]} 13. Bd5 {[%clk 0:01:46]} 13... Bxd5 {[%clk
0:01:42.8]} 14. exd5 {[%clk 0:01:45.2]} 14... Nd8 {[%clk 0:01:41.8]} 15. Rfe1
{[%clk 0:01:36]} 15... Qd6 {[%clk 0:01:22.7]} 16. Rad1 {[%clk 0:00:59.3]} 16...
Nd7 {[%clk 0:00:59.5]} 17. c4 {[%clk 0:00:53.5]} 17... f6 {[%clk 0:00:51.3]} 18.
Bh4 {[%clk 0:00:50.5]} 18... Nc5 {[%clk 0:00:42.5]} 19. Nbd2 {[%clk 0:00:44.8]}
19... Nf7 {[%clk 0:00:38.8]} 20. Bg3 {[%clk 0:00:44.2]} 20... Qd7 {[%clk
0:00:30.3]} 21. Ne4 {[%clk 0:00:36.2]} 21... Nd6 {[%clk 0:00:24.1]} 22. Nxd6
{[%clk 0:00:31.7]} 22... cxd6 {[%clk 0:00:21.2]} 23. b3 {[%clk 0:00:28.6]} 23...
f5 {[%clk 0:00:20.3]} 24. h3 {[%clk 0:00:23.1]} 24... h6 {[%clk 0:00:18.5]} 25.
Nh4 {[%clk 0:00:17.3]} 25... Qf7 {[%clk 0:00:15.6]} 26. f4 {[%clk 0:00:16.1]}
26... Ne4+ {[%clk 0:00:13.7]} 27. Kh2 {[%clk 0:00:15.5]} 27... Nxg3 {[%clk
0:00:12.4]} 28. Kxg3 {[%clk 0:00:16.4]} 28... g5 {[%clk 0:00:10.8]} 29. fxg5
{[%clk 0:00:14.6]} 29... f4+ {[%clk 0:00:09.6]} 30. Kh2 {[%clk 0:00:13.5]} 30...
hxg5 {[%clk 0:00:08.9]} 31. Nf3 {[%clk 0:00:13.7]} 31... Qh5 {[%clk 0:00:06.6]}
32. Qe4 {[%clk 0:00:10.2]} 32... g4 {[%clk 0:00:06.2]} 33. Ng1 {[%clk
0:00:08.8]} 33... f3 {[%clk 0:00:02.9]} 34. gxf3 {[%clk 0:00:07.9]} 1-0

[Event "Early-Titled-Tuesday-Blitz-October-24-2023"]
[Site "Chess.com"]
[Date "2023.10.24"]
[Round "9"]
[White "Krakozia"]
[Black "Malev212"]
[Result "1-0"]
[WhiteElo "2939"]
[BlackElo "2635"]
[TimeControl "180+1"]
[EndTime "9:42:35 PDT"]
[Termination "Krakozia won on time"]

1. e4 {[%clk 0:03:00.9]} 1... g6 {[%clk 0:02:57.7]} 2. d4 {[%clk 0:02:59.8]}
2... Bg7 {[%clk 0:02:57.5]} 3. Nf3 {[%clk 0:03:00.4]} 3... c6 {[%clk 0:02:53.6]}
4. c4 {[%clk 0:02:54.2]} 4... d5 {[%clk 0:02:52.6]} 5. cxd5 {[%clk 0:02:53.6]}
5... cxd5 {[%clk 0:02:52.5]} 6. e5 {[%clk 0:02:53.7]} 6... a6 {[%clk 0:02:49.3]}
7. h3 {[%clk 0:02:50.4]} 7... Nc6 {[%clk 0:02:48.9]} 8. Nc3 {[%clk 0:02:49.8]}
8... f6 {[%clk 0:02:47.8]} 9. exf6 {[%clk 0:02:47.1]} 9... Nxf6 {[%clk
0:02:45.4]} 10. Be2 {[%clk 0:02:43.6]} 10... O-O {[%clk 0:02:44.9]} 11. O-O
{[%clk 0:02:44.1]} 11... Qd6 {[%clk 0:02:30.3]} 12. Be3 {[%clk 0:02:42.2]} 12...
Nh5 {[%clk 0:02:26.9]} 13. Re1 {[%clk 0:02:31.6]} 13... Nf4 {[%clk 0:02:22.8]}
14. Bf1 {[%clk 0:02:30.7]} 14... b5 {[%clk 0:02:20.3]} 15. Rc1 {[%clk
0:02:26.9]} 15... Bd7 {[%clk 0:02:10.8]} 16. a3 {[%clk 0:02:15]} 16... e6 {[%clk
0:01:52.7]} 17. b4 {[%clk 0:02:10.5]} 17... Rf5 {[%clk 0:01:49.4]} 18. Nb1
{[%clk 0:02:06.7]} 18... Raf8 {[%clk 0:01:42.9]} 19. Nbd2 {[%clk 0:02:07.1]}
19... h6 {[%clk 0:01:34.1]} 20. g3 {[%clk 0:02:00.6]} 20... g5 {[%clk 0:01:24]}
21. Bxf4 {[%clk 0:01:57.5]} 21... gxf4 {[%clk 0:01:22.3]} 22. g4 {[%clk
0:01:58.1]} 22... R5f7 {[%clk 0:01:20.7]} 23. Nb3 {[%clk 0:01:58.7]} 23... e5
{[%clk 0:01:13.1]} 24. Rxc6 {[%clk 0:01:53.8]} 24... Bxc6 {[%clk 0:01:07.3]} 25.
dxe5 {[%clk 0:01:53.9]} 25... Qd8 {[%clk 0:00:47.9]} 26. Nbd4 {[%clk 0:01:53.6]}
26... Qe8 {[%clk 0:00:26]} 27. Bd3 {[%clk 0:01:46.3]} 27... Re7 {[%clk
0:00:21.3]} 28. Bb1 {[%clk 0:01:32.5]} 28... Bd7 {[%clk 0:00:17.9]} 29. Qd3
{[%clk 0:01:26.1]} 29... Bh8 {[%clk 0:00:16.7]} 30. e6 {[%clk 0:01:19]} 30...
Bc8 {[%clk 0:00:16.3]} 31. Nf5 {[%clk 0:01:04.6]} 31... Rxe6 {[%clk 0:00:14]}
32. Nxh6+ {[%clk 0:01:00.7]} 32... Rxh6 {[%clk 0:00:11.9]} 33. Rxe8 {[%clk
0:01:01.2]} 33... Rxe8 {[%clk 0:00:12.1]} 34. Qxd5+ {[%clk 0:00:59.4]} 34... Be6
{[%clk 0:00:12]} 35. Qg5+ {[%clk 0:00:51.5]} 35... Bg7 {[%clk 0:00:10.6]} 36.
Kg2 {[%clk 0:00:49.2]} 36... Bc4 {[%clk 0:00:09.8]} 37. Bg6 {[%clk 0:00:40.4]}
37... Rf8 {[%clk 0:00:06.4]} 38. Be4 {[%clk 0:00:37.4]} 38... Kh8 {[%clk
0:00:05.5]} 39. h4 {[%clk 0:00:29.8]} 39... Re6 {[%clk 0:00:03.8]} 40. Qh5+
{[%clk 0:00:23.7]} 40... Rh6 {[%clk 0:00:03.4]} 41. Qc5 {[%clk 0:00:24.2]} 41...
Re6 {[%clk 0:00:02.2]} 42. Bf5 {[%clk 0:00:23.4]} 1-0

[Event "Early-Titled-Tuesday-Blitz-October-24-2023"]
[Site "Chess.com"]
[Date "2023.10.24"]
[Round "9"]
[White "Beca95"]
[Black "Fonsofan"]
[Result "1-0"]
[WhiteElo "2923"]
[BlackElo "2737"]
[TimeControl "180+1"]
[EndTime "9:42:38 PDT"]
[Termination "Beca95 won by resignation"]

1. c4 {[%clk 0:03:00.9]} 1... Nf6 {[%clk 0:02:55.1]} 2. Nc3 {[%clk 0:03:00.5]}
2... c5 {[%clk 0:02:49.1]} 3. Nf3 {[%clk 0:03:00.1]} 3... Nc6 {[%clk 0:02:49.2]}
4. d4 {[%clk 0:02:59.2]} 4... cxd4 {[%clk 0:02:48.5]} 5. Nxd4 {[%clk 0:03:00.1]}
5... e6 {[%clk 0:02:48.2]} 6. Bf4 {[%clk 0:02:58.3]} 6... a6 {[%clk 0:02:38.5]}
7. g3 {[%clk 0:02:52.5]} 7... Qb6 {[%clk 0:02:37.1]} 8. Nb3 {[%clk 0:02:48.4]}
8... d5 {[%clk 0:02:37.2]} 9. cxd5 {[%clk 0:02:42.4]} 9... Nxd5 {[%clk
0:02:38.1]} 10. Nxd5 {[%clk 0:02:41.9]} 10... exd5 {[%clk 0:02:39]} 11. Bg2
{[%clk 0:02:42]} 11... Bb4+ {[%clk 0:02:37.5]} 12. Bd2 {[%clk 0:02:42]} 12...
Be6 {[%clk 0:02:37.5]} 13. O-O {[%clk 0:02:41.8]} 13... O-O {[%clk 0:02:30.8]}
14. Bxb4 {[%clk 0:02:42.4]} 14... Qxb4 {[%clk 0:02:30.7]} 15. Rc1 {[%clk
0:02:42.1]} 15... Rac8 {[%clk 0:02:21.5]} 16. Rc2 {[%clk 0:02:16.8]} 16... d4
{[%clk 0:02:01.7]} 17. Qd3 {[%clk 0:01:43.7]} 17... Qb5 {[%clk 0:00:31.2]} 18.
Qxb5 {[%clk 0:01:39.6]} 18... axb5 {[%clk 0:00:32.1]} 19. Rd2 {[%clk 0:01:39.2]}
19... Bxb3 {[%clk 0:00:21.5]} 20. axb3 {[%clk 0:01:40.1]} 20... Rfd8 {[%clk
0:00:21.6]} 21. Rc1 {[%clk 0:01:38.7]} 21... Kf8 {[%clk 0:00:19.4]} 22. Rc5
{[%clk 0:01:36.5]} 22... Na7 {[%clk 0:00:07.8]} 23. Rxc8 {[%clk 0:01:29.2]}
23... Nxc8 {[%clk 0:00:08.7]} 24. Bxb7 {[%clk 0:01:28.5]} 24... Nb6 {[%clk
0:00:07.4]} 25. Bc6 {[%clk 0:01:27.4]} 25... b4 {[%clk 0:00:07]} 26. Kg2 {[%clk
0:01:27.5]} 26... Rd6 {[%clk 0:00:06.4]} 27. Be4 {[%clk 0:01:27.4]} 27... Ke7
{[%clk 0:00:06.9]} 28. Rc2 {[%clk 0:01:27.7]} 28... g6 {[%clk 0:00:07]} 29. f4
{[%clk 0:01:26.6]} 29... f5 {[%clk 0:00:04.3]} 30. Bd3 {[%clk 0:01:26.5]} 30...
Kd8 {[%clk 0:00:04.4]} 31. Rc5 {[%clk 0:01:24.7]} 31... Nd5 {[%clk 0:00:04.5]}
32. Kf2 {[%clk 0:01:24]} 32... Ne3 {[%clk 0:00:03.8]} 33. Ke1 {[%clk 0:01:17.4]}
33... Ke7 {[%clk 0:00:04.1]} 34. Rb5 {[%clk 0:01:16.8]} 34... Rc6 {[%clk
0:00:04.1]} 35. Bc4 {[%clk 0:01:09.5]} 35... Nxc4 {[%clk 0:00:03.4]} 36. bxc4
{[%clk 0:01:09.9]} 36... Rxc4 {[%clk 0:00:03.7]} 37. b3 {[%clk 0:01:10.6]} 37...
Rc2 {[%clk 0:00:03.7]} 38. Rxb4 {[%clk 0:01:05.1]} 38... Rb2 {[%clk 0:00:03.8]}
39. Rb7+ {[%clk 0:01:01.8]} 39... Kf6 {[%clk 0:00:03.9]} 40. Rxh7 {[%clk
0:01:01.4]} 40... Rxb3 {[%clk 0:00:04.1]} 41. Rd7 {[%clk 0:01:01.1]} 41... Rb4
{[%clk 0:00:04]} 42. Rd6+ {[%clk 0:01:01.5]} 42... Kf7 {[%clk 0:00:04.1]} 43.
Kd2 {[%clk 0:00:59.2]} 43... Ra4 {[%clk 0:00:02.8]} 44. Kd3 {[%clk 0:00:58.9]}
44... Ra1 {[%clk 0:00:02.6]} 45. Kxd4 {[%clk 0:00:47.4]} 45... Rh1 {[%clk
0:00:02.2]} 46. h4 {[%clk 0:00:41.2]} 46... Rg1 {[%clk 0:00:01.7]} 47. Ke5
{[%clk 0:00:41.3]} 47... Rxg3 {[%clk 0:00:01]} 48. h5 {[%clk 0:00:41.1]} 48...
Ke8 {[%clk 0:00:01.9]} 49. hxg6 {[%clk 0:00:37.9]} 1-0

[Event "Early-Titled-Tuesday-Blitz-October-24-2023"]
[Site "Chess.com"]
[Date "2023.10.24"]
[Round "9"]
[White "Cambek64"]
[Black "profedechess93"]
[Result "0-1"]
[WhiteElo "2458"]
[BlackElo "2615"]
[TimeControl "180+1"]
[EndTime "9:42:43 PDT"]
[Termination "profedechess93 won on time"]

1. b3 {[%clk 0:02:56.3]} 1... d5 {[%clk 0:02:59.6]} 2. Bb2 {[%clk 0:02:56.6]}
2... Nf6 {[%clk 0:02:59.7]} 3. e3 {[%clk 0:02:56.5]} 3... a6 {[%clk 0:02:59.1]}
4. Nf3 {[%clk 0:02:54.5]} 4... c5 {[%clk 0:02:59.3]} 5. Be2 {[%clk 0:02:50.1]}
5... Nc6 {[%clk 0:02:59]} 6. O-O {[%clk 0:02:50.4]} 6... Bg4 {[%clk 0:02:59.1]}
7. d3 {[%clk 0:02:43]} 7... e6 {[%clk 0:02:59]} 8. Nbd2 {[%clk 0:02:43.1]} 8...
Bd6 {[%clk 0:02:59.1]} 9. c4 {[%clk 0:02:39.9]} 9... O-O {[%clk 0:02:58.8]} 10.
cxd5 {[%clk 0:02:37.6]} 10... exd5 {[%clk 0:02:58.4]} 11. Rc1 {[%clk 0:02:32.8]}
11... Rc8 {[%clk 0:02:58]} 12. Nh4 {[%clk 0:02:24.8]} 12... Be6 {[%clk
0:02:51.7]} 13. Nhf3 {[%clk 0:02:23.5]} 13... Bg4 {[%clk 0:02:51.8]} 14. Nh4
{[%clk 0:02:19.3]} 14... Be6 {[%clk 0:02:51.9]} 15. Nhf3 {[%clk 0:02:19.1]}
15... Re8 {[%clk 0:02:52.5]} 16. d4 {[%clk 0:02:01.8]} 16... cxd4 {[%clk
0:01:53]} 17. Nxd4 {[%clk 0:01:58.6]} 17... Nxd4 {[%clk 0:01:50.9]} 18. Bxd4
{[%clk 0:01:56.2]} 18... Qe7 {[%clk 0:01:49.9]} 19. Rxc8 {[%clk 0:01:36.7]}
19... Rxc8 {[%clk 0:01:46.7]} 20. Qb1 {[%clk 0:01:36.2]} 20... Ba3 {[%clk
0:01:42.5]} 21. Nf3 {[%clk 0:01:18.7]} 21... Bg4 {[%clk 0:01:34.3]} 22. h3
{[%clk 0:01:15.2]} 22... Bh5 {[%clk 0:01:33.5]} 23. Rd1 {[%clk 0:01:07.4]} 23...
Ne4 {[%clk 0:01:32.2]} 24. Bb2 {[%clk 0:00:38.5]} 24... Nc3 {[%clk 0:01:24.2]}
25. Bxc3 {[%clk 0:00:35.9]} 25... Rxc3 {[%clk 0:01:23.3]} 26. Nd4 {[%clk
0:00:33.9]} 26... Bg6 {[%clk 0:01:18.9]} 27. Qa1 {[%clk 0:00:20.5]} 27... Qc5
{[%clk 0:01:18.9]} 28. Bf3 {[%clk 0:00:15.4]} 28... h6 {[%clk 0:01:17.1]} 29.
Ne2 {[%clk 0:00:12.2]} 29... Rc2 {[%clk 0:01:15.8]} 30. Rxd5 {[%clk 0:00:10.4]}
30... Qc7 {[%clk 0:01:13.8]} 31. Qd4 {[%clk 0:00:07.5]} 31... Bb2 {[%clk
0:00:58.2]} 32. Rd8+ {[%clk 0:00:06.1]} 32... Kh7 {[%clk 0:00:57.9]} 33. Qd7
{[%clk 0:00:06.4]} 33... Bf6 {[%clk 0:00:51.8]} 34. Qxc7 {[%clk 0:00:05.3]}
34... Rxc7 {[%clk 0:00:52.7]} 35. Rd2 {[%clk 0:00:05]} 35... Bb1 {[%clk
0:00:50.3]} 36. g3 {[%clk 0:00:04.1]} 36... g6 {[%clk 0:00:50.5]} 37. Kg2 {[%clk
0:00:04.4]} 37... Kg7 {[%clk 0:00:50.3]} 38. h4 {[%clk 0:00:04.2]} 38... b5
{[%clk 0:00:46.2]} 39. Nd4 {[%clk 0:00:04.1]} 39... Rc1 {[%clk 0:00:41.8]} 40.
Be2 {[%clk 0:00:03.8]} 40... Be4+ {[%clk 0:00:40.4]} 41. Bf3 {[%clk 0:00:04.1]}
41... Bb1 {[%clk 0:00:41.2]} 42. Be2 {[%clk 0:00:04.6]} 42... Be7 {[%clk
0:00:41]} 43. Bf3 {[%clk 0:00:03.4]} 43... Bb4 {[%clk 0:00:40.5]} 0-1

[Event "Early-Titled-Tuesday-Blitz-October-24-2023"]
[Site "Chess.com"]
[Date "2023.10.24"]
[Round "9"]
[White "Iskusnyh"]
[Black "JG-17"]
[Result "0-1"]
[WhiteElo "2578"]
[BlackElo "2495"]
[TimeControl "180+1"]
[EndTime "9:42:43 PDT"]
[Termination "JG-17 won on time"]

1. d4 {[%clk 0:03:00.9]} 1... d6 {[%clk 0:02:59.8]} 2. Nf3 {[%clk 0:02:59.5]}
2... Nf6 {[%clk 0:03:00.2]} 3. c4 {[%clk 0:02:57.8]} 3... g6 {[%clk 0:02:58.4]}
4. g3 {[%clk 0:02:57.4]} 4... Bg7 {[%clk 0:02:58.7]} 5. Bg2 {[%clk 0:02:55.8]}
5... O-O {[%clk 0:02:59.3]} 6. Nc3 {[%clk 0:02:54.1]} 6... Nbd7 {[%clk
0:02:59.3]} 7. O-O {[%clk 0:02:49.1]} 7... e5 {[%clk 0:02:59.9]} 8. e4 {[%clk
0:02:48.5]} 8... Re8 {[%clk 0:02:59.3]} 9. h3 {[%clk 0:02:45.9]} 9... exd4
{[%clk 0:02:57.7]} 10. Nxd4 {[%clk 0:02:45.3]} 10... c6 {[%clk 0:02:55.1]} 11.
Be3 {[%clk 0:02:29.4]} 11... Nc5 {[%clk 0:02:54.4]} 12. Qc2 {[%clk 0:02:28.8]}
12... a5 {[%clk 0:02:53.9]} 13. Rad1 {[%clk 0:02:28]} 13... Qc7 {[%clk 0:02:52]}
14. b3 {[%clk 0:02:22.3]} 14... Ne6 {[%clk 0:02:46.6]} 15. Nde2 {[%clk
0:02:20.1]} 15... Nc5 {[%clk 0:02:41.2]} 16. f4 {[%clk 0:02:15.2]} 16... Nfxe4
{[%clk 0:02:28.3]} 17. Nxe4 {[%clk 0:02:11.5]} 17... Nxe4 {[%clk 0:02:28.2]} 18.
Bxe4 {[%clk 0:02:10.3]} 18... Qe7 {[%clk 0:02:26.8]} 19. Bg2 {[%clk 0:01:02.1]}
19... Qxe3+ {[%clk 0:02:25.5]} 20. Rf2 {[%clk 0:01:02]} 20... Bf5 {[%clk
0:02:20.1]} 21. Qd2 {[%clk 0:01:01.4]} 21... Rad8 {[%clk 0:02:15.8]} 22. Nd4
{[%clk 0:00:59.9]} 22... Bxd4 {[%clk 0:01:51.6]} 23. Qxd4 {[%clk 0:00:59]} 23...
Qxg3 {[%clk 0:01:52.3]} 24. Rf3 {[%clk 0:00:54.8]} 24... Re1+ {[%clk 0:01:51.4]}
25. Rxe1 {[%clk 0:00:54.4]} 25... Qxe1+ {[%clk 0:01:52.3]} 26. Kh2 {[%clk
0:00:55.1]} 26... d5 {[%clk 0:01:29.8]} 27. Re3 {[%clk 0:00:50.3]} 27... Qh4
{[%clk 0:01:28]} 28. cxd5 {[%clk 0:00:47.9]} 28... cxd5 {[%clk 0:01:22.4]} 29.
Re5 {[%clk 0:00:37]} 29... Be6 {[%clk 0:00:56.6]} 30. a3 {[%clk 0:00:35]} 30...
Qe7 {[%clk 0:00:52.2]} 31. f5 {[%clk 0:00:34.1]} 31... gxf5 {[%clk 0:00:49.4]}
32. Re3 {[%clk 0:00:33.9]} 32... Qd6+ {[%clk 0:00:45.7]} 33. Rg3+ {[%clk
0:00:31]} 33... Kf8 {[%clk 0:00:45.5]} 34. Qf6 {[%clk 0:00:25.7]} 34... f4
{[%clk 0:00:37.2]} 35. Rf3 {[%clk 0:00:21.4]} 35... d4 {[%clk 0:00:37.7]} 36.
Rxf4 {[%clk 0:00:20.3]} 36... d3 {[%clk 0:00:37.9]} 37. Qh6+ {[%clk 0:00:19.9]}
37... Ke7 {[%clk 0:00:37.9]} 38. Qh4+ {[%clk 0:00:20]} 38... Ke8 {[%clk
0:00:34.5]} 39. Bf3 {[%clk 0:00:17.8]} 39... d2 {[%clk 0:00:33.6]} 40. Bd1
{[%clk 0:00:17.8]} 40... Qe5 {[%clk 0:00:22.4]} 41. Qg3 {[%clk 0:00:17]} 41...
Rd3 {[%clk 0:00:19.7]} 42. Qg8+ {[%clk 0:00:15.1]} 42... Ke7 {[%clk 0:00:19.5]}
43. Kg1 {[%clk 0:00:03]} 43... Qxf4 {[%clk 0:00:18.9]} 0-1

[Event "Early-Titled-Tuesday-Blitz-October-24-2023"]
[Site "Chess.com"]
[Date "2023.10.24"]
[Round "9"]
[White "SargissyanSargis"]
[Black "Apocalyps999"]
[Result "1/2-1/2"]
[WhiteElo "2386"]
[BlackElo "2288"]
[TimeControl "180+1"]
[EndTime "9:42:46 PDT"]
[Termination "Game drawn by repetition"]

1. e4 {[%clk 0:03:00.9]} 1... e5 {[%clk 0:02:59]} 2. Nf3 {[%clk 0:03:00.6]} 2...
Nc6 {[%clk 0:02:55.8]} 3. Bb5 {[%clk 0:02:59.8]} 3... a6 {[%clk 0:02:54]} 4. Ba4
{[%clk 0:02:59.8]} 4... Nf6 {[%clk 0:02:53.8]} 5. Nc3 {[%clk 0:02:58.7]} 5... b5
{[%clk 0:02:48]} 6. Bb3 {[%clk 0:02:58.7]} 6... d6 {[%clk 0:02:48.3]} 7. Ng5
{[%clk 0:02:37.5]} 7... Nd4 {[%clk 0:02:01.3]} 8. Nxf7 {[%clk 0:01:58.2]} 8...
Qe7 {[%clk 0:01:54.8]} 9. Nxh8 {[%clk 0:01:58.5]} 9... Nxb3 {[%clk 0:01:54.2]}
10. axb3 {[%clk 0:01:57.4]} 10... Bg4 {[%clk 0:01:51.8]} 11. f3 {[%clk
0:01:55.3]} 11... Bd7 {[%clk 0:01:49.7]} 12. d4 {[%clk 0:01:39.1]} 12... exd4
{[%clk 0:01:48.1]} 13. Qxd4 {[%clk 0:01:38.6]} 13... Nh5 {[%clk 0:01:47.7]} 14.
O-O {[%clk 0:01:30.9]} 14... g6 {[%clk 0:01:43.9]} 15. Nd5 {[%clk 0:01:28.1]}
15... Qd8 {[%clk 0:01:43.9]} 16. f4 {[%clk 0:00:52.5]} 16... Bg7 {[%clk
0:01:42.7]} 17. e5 {[%clk 0:00:51.4]} 17... Bxh8 {[%clk 0:01:36.6]} 18. Qe3
{[%clk 0:00:41.8]} 18... dxe5 {[%clk 0:01:32.6]} 19. fxe5 {[%clk 0:00:41.7]}
19... Bf5 {[%clk 0:01:28.2]} 20. Nf6+ {[%clk 0:00:40.1]} 20... Nxf6 {[%clk
0:01:22.5]} 21. exf6+ {[%clk 0:00:40.5]} 21... Kf7 {[%clk 0:01:21.4]} 22. Qe7+
{[%clk 0:00:34.2]} 22... Qxe7 {[%clk 0:01:20.8]} 23. fxe7 {[%clk 0:00:35.1]}
23... Kxe7 {[%clk 0:01:21.7]} 24. Bg5+ {[%clk 0:00:34.7]} 24... Kd7 {[%clk
0:01:19.6]} 25. Rad1+ {[%clk 0:00:32.3]} 25... Kc6 {[%clk 0:01:19.9]} 26. c3
{[%clk 0:00:32.5]} 26... Bc2 {[%clk 0:01:11.2]} 27. Rd2 {[%clk 0:00:26.5]} 27...
Bxb3 {[%clk 0:01:11.3]} 28. Bf6 {[%clk 0:00:25.9]} 28... Bxf6 {[%clk 0:01:09.8]}
29. Rxf6+ {[%clk 0:00:26.2]} 29... Kc5 {[%clk 0:01:09.8]} 30. Rf4 {[%clk
0:00:12.7]} 30... a5 {[%clk 0:00:59.7]} 31. Rh4 {[%clk 0:00:08.2]} 31... h5
{[%clk 0:00:57.5]} 32. Re4 {[%clk 0:00:08.8]} 32... a4 {[%clk 0:00:56.3]} 33.
Re5+ {[%clk 0:00:09]} 33... Kb6 {[%clk 0:00:53.5]} 34. Re7 {[%clk 0:00:08]}
34... Rf8 {[%clk 0:00:45.2]} 35. Rg7 {[%clk 0:00:07.8]} 35... Rf6 {[%clk
0:00:40.7]} 36. h4 {[%clk 0:00:07.5]} 36... c6 {[%clk 0:00:33.5]} 37. Kh2 {[%clk
0:00:06.3]} 37... Bd5 {[%clk 0:00:33.5]} 38. Kg3 {[%clk 0:00:06.5]} 38... Kc5
{[%clk 0:00:30.7]} 39. Rf2 {[%clk 0:00:05.9]} 39... Re6 {[%clk 0:00:27.3]} 40.
Kf4 {[%clk 0:00:04.2]} 40... Rf6+ {[%clk 0:00:23.4]} 41. Ke3 {[%clk 0:00:03.4]}
41... Re6+ {[%clk 0:00:24.3]} 42. Kf4 {[%clk 0:00:03.7]} 42... Rf6+ {[%clk
0:00:24.3]} 43. Ke3 {[%clk 0:00:04]} 43... Re6+ {[%clk 0:00:22.1]} 44. Kf4
{[%clk 0:00:04.2]} 1/2-1/2